[Event "1st Uppsala Festival 2022"]
[Site "Uppsala"]
[Date "2022.08.09"]
[Round "2.5"]
[White "Johansson, Jan"]
[Black "Savitha Shri B"]
[Result "0-1"]
[ECO "D58"]
[WhiteElo "2306"]
[BlackElo "2278"]
[Annotator "RC"]
[PlyCount "86"]
[EventDate "2022.08.09"]
[EventType "tourn"]
[EventCountry "SWE"]
[SourceTitle "playchess.com"]
[Source "ChessBase"]
[SourceQuality "1"]
[TimeControl "5400+30"]

1. d4 {[%emt 0:00:51]} d5 {[%emt 0:00:10]} 2. Nf3 {[%emt 0:00:18]} Nf6 {[%emt 0:00:21]} 3. c4 {[%emt 0:00:09]} e6 {[%emt 0:00:11]} 4. Nc3 {[%emt 0:00:19]} Be7 {[%emt 0:00:09]} 5. Bg5 {[%emt 0:01:07]} O-O {[%emt 0:00:23]} 6. e3 {[%emt 0:00:26]} h6 {[%emt 0:01:39]} 7. Bh4 {[%emt 0:01:14]} b6 {[%emt 0:01:25]} 8. Bd3 Bb7 {[%emt 0:00:30]} 9. Bxf6 Bxf6 {[%emt 0:00:30]} 10. cxd5 exd5 {[%emt 0:00:30]} 11. Qb3 a6 {[%emt 0:00:30]} 12. O-O c6 {[%emt 0:00:30]} 13. Rad1 Nd7 {[%emt 0:00:30]} 14. e4 dxe4 {[%emt 0:00:30]} 15. Nxe4 Qc7 {[%emt 0:00:30]} 16. Nc3 {[%emt 0:31:12]} Qd8 17. Ne4 {[%emt 0:00:23]} Qc7 {[%emt 0:24:47]} 18. Bb1 {[%emt 0:15:49]} Rac8 {[%emt 0:13:12]} 19. Qa3 {[%emt 0:12:58]} Rcd8 {[%emt 0:11:08]} 20. Qd6 {[%emt 0:07:51]} Qxd6 {[%emt 0:00:08]} 21. Nxd6 {[%emt 0:28:23]} Ba8 {[%emt 0:00:14]} 22. Be4 {[%emt 0:00:00]} g6 {[%emt 0:04:25]} 23. Nc4 {[%emt 0:00:00]} Rfe8 {[%emt 0:04:15]} 24. Rfe1 {[%emt 0:00:00]} b5 {[%emt 0:07:42]} 25. Na5 {[%emt 0:00:00]} c5 {[%emt 0:00:45]} 26. Bxa8 {[%emt 0:00:00]} Rxa8 {[%emt 0:01:34]} 27. dxc5 {[%emt 0:00:00]} Rxe1+ {[%emt 0:00:58]} 28. Nxe1 {[%emt 0:00:00]} Nxc5 {[%emt 0:00:06]} 29. b3 {[%emt 0:00:00]} Bc3 {[%emt 0:03:42]} 30. Nc6 {[%emt 0:00:00]} Re8 {[%emt 0:01:14]} 31. Kf1 {[%emt 0:00:08]} Re6 {[%emt 0:06:43]} 32. Nb8 {[%emt 0:00:19]} Kf8 {[%emt 0:06:56]} 33. Nf3 {[%emt 0:00:40]} Ke8 {[%emt 0:01:21]} 34. Rd5 {[%emt 0:00:59]} Ne4 {[%emt 0:02:41]} 35. Nd7 {[%emt 0:01:35]} Bb4 {[%emt 0:02:32]} 36. Rd4 {[%emt 0:02:00]} Bc3 {[%emt 0:00:54]} 37. Rd5 {[%emt 0:01:16]} Bb4 {[%emt 0:00:02]} 38. Rd4 {[%emt 0:00:06]} Ng5 {[%emt 0:00:41]} 39. Nde5 {[%emt 0:01:00]} Bc3 {[%emt 0:00:13]} 40. Rd5 {[%emt 0:00:05]} Bxe5 {[%emt 0:01:04]} 41. Nxe5 {[%emt 0:00:15]} Ne4 {[%emt 0:00:25]} 42. Nf3 {[%emt 0:01:30]} Nc3 {[%emt 0:00:54]} 43. Rd2 {[%emt 0:00:15]} b4 {[%emt 0:00:16]} 0-1

[Event "1st Uppsala Festival 2022"]
[Site "Uppsala"]
[Date "2022.08.09"]
[Round "3.1"]
[White "Stefansson, Vignir Vatnar"]
[Black "Johansson, Jan"]
[Result "1-0"]
[ECO "B07"]
[WhiteElo "2461"]
[BlackElo "2306"]
[Annotator "TA"]
[PlyCount "79"]
[EventDate "2022.08.09"]
[EventType "tourn"]
[EventCountry "SWE"]
[SourceTitle "playchess.com"]
[Source "ChessBase"]
[SourceQuality "1"]
[TimeControl "5400+30"]

{[%evp 9,79,28,37,47,45,23,40,31,54,69,68,50,75,52,111,109,87,74,122,115,93,47,59,74,65,65,55,60,64,0,53,58,70,19,56,74,96,104,110,40,54,60,63,60,76,76,76,76,103,81,152,102,235,230,375,245,222,232,1216,1155,2103,1820,1728,987,987,985,972,967,938,933,909,898]} 1. e4 {[%emt 0:00:14]} d6 {[%emt 0:01:06]} 2. d4 {[%emt 0:00:11][%cal Bd2d4,Bd4d5][%mdl 32]} Nf6 {[%emt 0:00:06]} 3. Nc3 {[%emt 0:00:10]} e5 {[%emt 0:00:05]} 4. Nge2 {[%emt 0:00:23]} Nc6 {[%emt 0:07:34]} 5. h3 {[%emt 0:00:10]} g6 {[%emt 0:02:37]} 6. d5 {[%emt 0:01:29] B07: Pirc Defence: Miscellaneous Systems.} Ne7 {[%emt 0:00:13]} 7. g4 {[%emt 0:00:05][%cal Bg2g4,Bg4g5][%mdl 32] [#]} Bg7 $146 {[%emt 0:00:17]} ({Predecessor:} 7... Nd7 8. h4 h5 9. gxh5 Rxh5 10. Ng3 Rh8 11. h5 Nf6 12. Bg5 Neg8 13. Qf3 Be7 14. hxg6 Rxh1 15. gxf7+ Kxf7 16. Qxh1 {1-0 (51) Gorodetzky,D (2495)-Efimov,I (2416) Tornelo INT 2021}) 8. Ng3 {[%emt 0:01:19] White is slightly better.} c6 {[%emt 0:05:53]} 9. g5 {[%emt 0:19:43]} Nfg8 {[%emt 0:04:48]} 10. h4 {[%emt 0:04:12]} cxd5 {[%emt 0:04:09]} 11. exd5 {[%emt 0:01:40]} h6 {[%emt 0:02:29] [#]} (11... h5 $1 $14) 12. h5 $1 $16 {[%emt 0:06:00]} hxg5 {[%emt 0:03:52]} 13. Bxg5 {[%emt 0:03:40] Strongly threatening hxg6.} f6 {[%emt 0:04:24] [#]} (13... Qb6 $142) 14. Bd2 $1 {[%emt 0:05:45] White is more active.} g5 {[%emt 0:01:25]} 15. Bb5+ {[%emt 0:03:01]} (15. Qe2 $16) 15... Kf8 $14 {[%emt 0:02:00]} 16. Qe2 {[%emt 0:08:25]} Nh6 {[%emt 0:04:26]} 17. O-O-O $1 {[%emt 0:01:09]} Nef5 {[%emt 0:02:19]} 18. Nxf5 $1 {[%emt 0:02:22]} Nxf5 {[%emt 0:03:22]} 19. h6 {[%emt 0:02:06]} (19. Qf1 $14) 19... Bxh6 {[%emt 0:00:25]} (19... Rxh6 $11 20. Rxh6 Nxh6) 20. Bd3 {[%emt 0:00:26]} Bd7 {[%emt 0:05:17]} 21. Qh5 {[%emt 0:08:09]} ({Better is} 21. Ne4 $14) 21... Qe8 {[%emt 0:01:58]} 22. Qf3 {[%emt 0:01:34][%mdl 1024] White has compensation.} Qg6 {[%emt 0:05:24]} 23. Qg4 {[%emt 0:01:09][%cal Of2f4]} Rd8 {[%emt 0:03:42]} 24. Ne2 {[%emt 0:01:46]} (24. Qb4 $16) 24... Ne7 {[%emt 0:03:52]} 25. Qb4 {[%emt 0:00:43]} Bf5 {[%emt 0:01:11]} 26. Bxf5 {[%emt 0:00:18]} Nxf5 {[%emt 0:00:12]} 27. Qxb7 {[%emt 0:00:40]} Rh7 {[%emt 0:00:44]} 28. Qa6 {[%emt 0:00:22]} Rhd7 {[%emt 0:10:24]} 29. Kb1 {[%emt 0:06:49]} Kg7 {[%emt 0:00:40]} (29... Bg7 $142) 30. Rdg1 $16 {[%emt 0:00:57][%cal Of2f4]} Ne7 {[%emt 0:04:29] This move loses the game for Black.} (30... Rc7 $16 {might work better.}) 31. f4 $18 {[%emt 0:06:15]} Nxd5 {[%emt 0:05:04]} (31... Nf5 $142 32. Rg4 Kg8) 32. Qc4 {[%emt 0:03:57]} Nb6 {[%emt 0:05:31]} 33. Qb3 {[%emt 0:00:46] Black must now prevent Ng3. The board is on fire.} exf4 {[%emt 0:00:15]} (33... Rh8 34. Be3 Rc7) 34. Nxf4 {[%emt 0:00:20][%mdl 64] Pin. White is clearly winning.} Qe4 {[%emt 0:01:01]} 35. Ne6+ {[%emt 0:01:22]} Kg6 {[%emt 0:00:13]} 36. Nxd8 {[%emt 0:01:32]} Rxd8 {[%emt 0:00:07]} 37. Qh3 {[%emt 0:00:23]} Rh8 {[%emt 0:00:43]} 38. Qh5+ {[%emt 0:00:10]} Kg7 {[%emt 0:00:04] [#]} 39. Rxg5+ $1 {[%emt 0:02:19][%mdl 512]} fxg5 {[%emt 0:00:12]} 40. Bc3+ {[%emt 0:00:04] Weighted Error Value: White=0.14 (very precise) /Black=0.25 (precise)} 1-0

[Event "1st Uppsala Festival 2022"]
[Site "Uppsala"]
[Date "2022.08.09"]
[Round "3.2"]
[White "Savitha Shri B"]
[Black "Larkin, Vladyslav"]
[Result "0-1"]
[ECO "B11"]
[WhiteElo "2278"]
[BlackElo "2455"]
[Annotator "TA"]
[PlyCount "118"]
[EventDate "2022.08.09"]
[EventType "tourn"]
[EventCountry "SWE"]
[SourceTitle "playchess.com"]
[Source "ChessBase"]
[SourceQuality "1"]
[TimeControl "5400+30"]

{[%evp 9,118,0,0,-32,-12,-16,-6,-20,-8,-8,8,23,23,29,69,34,86,75,79,80,90,44,45,42,77,74,114,102,110,112,111,95,115,122,163,162,182,170,267,287,358,352,372,0,0,0,0,-23,0,0,0,0,0,0,0,-4,-3,-36,-43,-73,-86,-102,-100,-146,-124,-222,-206,-199,-182,-217,-232,-221,-214,-220,-188,-286,-283,-434,-431,-409,-409,-826,-788,-2289,-2326,-2489,-2401,-11212,-11212,-1990,-1999,-6760,-6506,-5854,-5522,-2410,-5385,-29979,-29980,-29982,-29977,-29977,-29978,-29978,-29979,-29979,-29980,-29980,-29981,-29981,-29953]} 1. e4 {[%emt 0:00:32]} c6 {[%emt 0:00:07]} 2. Nc3 {[%emt 0:00:08]} d5 {[%emt 0:00:06]} 3. Qf3 {[%emt 0:00:04]} dxe4 {[%emt 0:07:27]} 4. Nxe4 {[%emt 0:00:06]} Nf6 {[%emt 0:00:07]} 5. Nxf6+ {[%emt 0:05:26]} exf6 {[%emt 0:01:01]} 6. Qg3 {[%emt 0:04:05] [#] B11: Caro-Kann: Two Knights Variation.} g6 $146 {[%emt 0:01:19]} ({Predecessor:} 6... Qd6 7. f4 Bf5 8. d3 Nd7 9. Bd2 O-O-O 10. O-O-O Rg8 11. Ne2 Nb6 12. Nc3 Nd5 13. Be2 Nxc3 14. Bxc3 {0-1 (56) Sergeev,A (1982)-Linna,A (1980) Raahe 2018}) 7. Bc4 {[%emt 0:05:06]} Nd7 {[%emt 0:03:18]} 8. Ne2 {[%emt 0:12:38] The position is equal.} Nb6 {[%emt 0:14:17]} 9. Bb3 {[%emt 0:00:50]} Qe7 {[%emt 0:04:32]} 10. d3 {[%emt 0:04:26]} h5 {[%emt 0:00:40]} 11. Bd2 {[%emt 0:03:57][%cal Oe1g1]} h4 {[%emt 0:15:54]} 12. Qf3 {[%emt 0:01:35]} Bh6 {[%emt 0:00:25]} (12... a5 $14) 13. Bxh6 $16 {[%emt 0:01:07]} Rxh6 {[%emt 0:00:05]} 14. O-O-O {[%emt 0:00:30]} Kf8 {[%emt 0:02:11]} 15. g4 {[%emt 0:08:40]} (15. Rhe1 $16) 15... f5 {[%emt 0:07:58]} 16. gxf5 {[%emt 0:03:04]} Qg5+ {[%emt 0:01:41]} 17. Kb1 {[%emt 0:21:37]} Qxf5 {[%emt 0:00:33]} 18. Qe3 {[%emt 0:00:02]} Rh7 {[%emt 0:00:23]} 19. Rhe1 {[%emt 0:01:29]} Bd7 {[%emt 0:01:19]} 20. Nc3 {[%emt 0:01:42]} Re8 {[%emt 0:13:21]} 21. Qd4 {[%emt 0:00:43] Hoping for Rxe8+.} Rh5 {[%emt 0:00:33]} 22. Rxe8+ {[%emt 0:03:52]} Bxe8 {[%emt 0:00:04]} 23. Re1 {[%emt 0:03:21] Against Qe5} Qd7 {[%emt 0:06:33] Inhibits Qd6+.} (23... Nc8 $142 24. Qb4+ Qc5) 24. Qf6 $18 {[%emt 0:00:57]} Nc8 {[%emt 0:01:41]} 25. Ne4 {[%emt 0:00:53][%cal Oe4c5] [#] Intending Nc5! and mate.} Qf5 {[%emt 0:04:18] Inhibits Nc5.} 26. Qd8 {[%emt 0:01:16]} (26. Qc3 $18 {Nf6 is the strong threat.} Qa5 27. Nf6) 26... Qa5 $40 {[%emt 0:00:08][%mdl 128] Black attacks.} 27. Qxa5 {[%emt 0:02:06]} Rxa5 {[%emt 0:00:09]} 28. c4 {[%emt 0:02:21]} Rf5 {[%emt 0:01:31] Inhibits Nf6.} (28... Re5 $5 {[%cal Rf7f5]} 29. Rf1 Bd7 $11) 29. Bd1 {[%emt 0:02:46] Black must now prevent Bg4.} Rf4 {[%emt 0:01:25] Against Bg4} 30. f3 {[%emt 0:00:30]} b6 {[%emt 0:00:28]} 31. Kc2 {[%emt 0:00:27]} c5 {[%emt 0:01:39]} 32. Kc3 {[%emt 0:01:09]} Bc6 {[%emt 0:02:36]} 33. a3 {[%emt 0:01:26]} Ne7 {[%emt 0:04:31]} 34. b4 {[%emt 0:00:10]} Bxe4 {[%emt 0:00:18]} 35. dxe4 $17 {[%emt 0:02:53][%mdl 4096] Endgame KRB-KRN} Nc6 {[%emt 0:00:18]} 36. Re3 {[%emt 0:01:16]} ({White should try} 36. h3) 36... Ke7 {[%emt 0:00:11]} 37. Kb3 {[%emt 0:02:11]} (37. Kd2 $17 {was called for.}) 37... Rf6 {[%emt 0:00:12]} 38. Kc3 {[%emt 0:01:02]} Ke6 {[%emt 0:00:36]} 39. Rd3 {[%emt 0:00:50]} Nd4 {[%emt 0:00:04]} 40. Kd2 {[%emt 0:00:08]} Ke5 {[%emt 0:00:22]} 41. Ke3 {[%emt 0:01:19]} g5 {[%emt 0:00:04]} 42. h3 {[%emt 0:00:11]} (42. Rd2 $142) 42... Rd6 $19 {[%emt 0:00:12] And now ...Ne6 would win.} 43. Rd2 {[%emt 0:01:30]} (43. b5 $142) 43... Ne6 {[%emt 0:01:53] Threatens to win with ...Rxd2.} 44. Rd5+ {[%emt 0:01:05]} Rxd5 {[%emt 0:00:04]} 45. cxd5 {[%emt 0:00:20] KB-KN} (45. exd5 $142 Nf4 46. bxc5) 45... Nf4 {[%emt 0:00:04]} 46. bxc5 {[%emt 0:00:38]} bxc5 {[%emt 0:00:04]} 47. Bc2 {[%emt 0:00:09]} Nxh3 {[%emt 0:00:25]} 48. Bb1 {[%emt 0:00:16]} Nf4 {[%emt 0:00:08] ( -> ...h3)} 49. Kf2 {[%emt 0:00:03]} f6 {[%emt 0:01:43]} 50. Ba2 {[%emt 0:00:44]} f5 {[%emt 0:00:31]} 51. exf5 {[%emt 0:01:14]} Nxd5 {[%emt 0:00:07]} 52. Bb1 {[%emt 0:00:23]} Ne7 {[%emt 0:00:04]} 53. f4+ {[%emt 0:00:29]} gxf4 {[%emt 0:00:09] Black mates.} 54. Kf3 {[%emt 0:00:13]} h3 {[%emt 0:00:20][%cal Bh4h3,Bh3h2][%mdl 32]} 55. f6 {[%emt 0:00:03]} Kxf6 {[%emt 0:00:08]} 56. Kxf4 {[%emt 0:00:03]} h2 {[%emt 0:01:18]} 57. Be4 {[%emt 0:00:07] [#]} Nf5 $1 {[%emt 0:00:06][%mdl 512]} 58. Bg2 {[%emt 0:00:09]} c4 {[%emt 0:00:37][%cal Bc5c4,Bc4c3][%mdl 32]} 59. Ke4 {[%emt 0:00:04]} c3 {[%emt 0:07:42] Never resign too early!  Weighted Error Value: White=0.64/Black=0.10 (very precise)} 0-1

[Event "1st Uppsala Festival 2022"]
[Site "Uppsala"]
[Date "2022.08.09"]
[Round "3.3"]
[White "Sorensen, Hampus"]
[Black "Peng, Li Min"]
[Result "1/2-1/2"]
[ECO "B48"]
[WhiteElo "2376"]
[BlackElo "2516"]
[Annotator "RC"]
[PlyCount "62"]
[EventDate "2022.08.09"]
[EventType "tourn"]
[EventCountry "SWE"]
[SourceTitle "playchess.com"]
[Source "ChessBase"]
[SourceQuality "1"]
[TimeControl "5400+30"]

1. e4 {[%emt 0:00:30]} c5 {[%emt 0:05:00]} 2. Nf3 {[%emt 0:00:00]} e6 {[%emt 0:00:12]} 3. d4 {[%emt 0:00:02]} cxd4 {[%emt 0:00:04]} 4. Nxd4 {[%emt 0:00:07]} a6 {[%emt 0:00:05]} 5. Nc3 {[%emt 0:00:07]} Qc7 {[%emt 0:00:53]} 6. Be3 {[%emt 0:00:41]} Nc6 {[%emt 0:00:18]} 7. Qf3 {[%emt 0:00:49]} Nf6 {[%emt 0:00:21]} 8. O-O-O {[%emt 0:00:37]} Ne5 {[%emt 0:00:13]} 9. Qg3 {[%emt 0:00:10]} b5 {[%emt 0:00:13]} 10. Bxb5 {[%emt 0:00:51]} axb5 {[%emt 0:00:49]} 11. Ndxb5 {[%emt 0:00:20]} Qb8 {[%emt 0:00:10]} 12. Bf4 {[%emt 0:01:18]} d6 {[%emt 0:00:26]} 13. Rxd6 {[%emt 0:02:31]} Nh5 {[%emt 0:12:32]} 14. Qg5 {[%emt 0:00:58]} Bxd6 {[%emt 0:00:07]} 15. Nxd6+ {[%emt 0:00:32]} Qxd6 {[%emt 0:00:04]} 16. Bxe5 {[%emt 0:00:11]} Ra5 {[%emt 0:04:01]} 17. Nd5 {[%emt 0:09:36]} Qd7 {[%emt 0:06:42]} 18. Qxh5 {[%emt 0:03:44]} exd5 {[%emt 0:00:13]} 19. Bxg7 {[%emt 0:00:24]} Rg8 {[%emt 0:00:06]} 20. Qxh7 {[%emt 0:01:16]} Rxg7 {[%emt 0:00:09]} 21. Qxg7 {[%emt 0:00:13]} Rxa2 {[%emt 0:00:22]} 22. Kb1 {[%emt 0:01:23]} Qa7 {[%emt 0:00:07]} 23. Qg8+ {[%emt 0:00:11]} Ke7 {[%emt 0:00:10]} 24. Qg5+ {[%emt 0:00:04]} Ke8 {[%emt 0:00:16]} 25. Qg8+ {[%emt 0:00:05]} Ke7 {[%emt 0:00:06]} 26. Qg5+ {[%emt 0:00:05]} Kf8 {[%emt 0:00:07]} 27. Qd8+ {[%emt 0:00:21]} Kg7 {[%emt 0:00:09]} 28. Qg5+ {[%emt 0:00:05]} Kf8 {[%emt 0:00:19]} 29. Qd8+ {[%emt 0:00:04]} Kg7 {[%emt 0:00:05]} 30. Qg5+ {[%emt 0:00:04]} Kf8 {[%emt 0:00:14]} 31. Qd8+ {[%emt 0:00:06]} Kg7 {[%emt 0:00:05]} 1/2-1/2

[Event "1st Uppsala Festival 2022"]
[Site "Uppsala"]
[Date "2022.08.09"]
[Round "3.4"]
[White "Akesson, Ralf"]
[Black "Trost, Edvin"]
[Result "1/2-1/2"]
[ECO "D38"]
[WhiteElo "2427"]
[BlackElo "2345"]
[Annotator "TA"]
[PlyCount "70"]
[EventDate "2022.08.09"]
[EventType "tourn"]
[EventCountry "SWE"]
[SourceTitle "playchess.com"]
[Source "ChessBase"]
[SourceQuality "1"]
[TimeControl "5400+30"]

{[%evp 25,70,0,-15,-7,0,0,12,0,0,0,25,33,29,15,33,34,26,28,29,27,25,26,27,27,42,18,20,21,21,15,22,6,6,6,7,0,0,0,9,0,2,0,141,1,51,29,230]} 1. Nf3 {[%emt 0:00:30]} d5 {[%emt 0:00:51]} 2. d4 {[%emt 0:02:33]} Nf6 {[%emt 0:00:07]} 3. c4 {[%emt 0:00:09]} e6 {[%emt 0:00:03]} 4. Nc3 {[%emt 0:01:06]} Bb4 {[%emt 0:00:30]} 5. cxd5 {[%emt 0:00:30]} exd5 {[%emt 0:00:30]} 6. Qa4+ {[%emt 0:00:30]} Nc6 {[%emt 0:00:30]} 7. Bg5 {[%emt 0:00:30]} h6 {[%emt 0:00:30]} 8. Bxf6 {[%emt 0:00:30]} Qxf6 {[%emt 0:00:30]} 9. e3 {[%emt 0:00:30]} O-O {[%emt 0:00:30]} 10. Be2 {[%emt 0:00:30]} Be6 {[%emt 0:12:09]} 11. O-O {[%emt 0:10:06]} a6 {[%emt 0:00:30]} 12. Rfc1 {[%emt 0:00:30]} Bd6 {[%emt 0:02:27]} 13. Qd1 {[%emt 0:07:01]} Ne7 {[%emt 0:00:30]} 14. Na4 {[%emt 0:00:30] D38: Queen's Gambit Declined: Ragozin Defence (4 Nf3 Bb4).} c6 {[%emt 0:00:30]} 15. b4 {[%emt 0:00:30] [#]} Bg4 $146 {[%emt 0:00:30]} ({Predecessor:} 15... Nf5 16. Rab1 Rae8 17. Nc5 Bc8 18. a4 g5 19. Nd3 g4 20. Nfe5 h5 21. b5 axb5 22. axb5 {0-1 (39) Greenfeld,A (2559)-Hracek,Z (2612) Eilat 2012}) 16. Nc5 {[%emt 0:00:30] The position is equal.} b6 {[%emt 0:00:30]} 17. Nd3 {[%emt 0:00:30]} Bxf3 {[%emt 0:00:30]} (17... a5 $5 {[%cal Ra5b4]}) 18. Bxf3 {[%emt 0:00:30]} a5 {[%emt 0:00:30]} 19. a3 {[%emt 0:00:30][%cal Ob4b5,Ba2a3,Ba3b4][%mdl 32]} Qe6 {[%emt 0:00:30]} 20. b5 {[%emt 0:21:12]} cxb5 {[%emt 0:27:58]} 21. Qb3 {[%emt 0:01:08]} Qd7 {[%emt 0:00:36]} 22. Rcb1 {[%emt 0:09:48]} b4 {[%emt 0:01:15]} 23. axb4 {[%emt 0:00:07]} a4 {[%emt 0:00:11]} 24. Qd1 {[%emt 0:02:45]} Rfc8 {[%emt 0:01:22]} 25. Be2 {[%emt 0:04:03]} Rc7 {[%emt 0:16:13]} 26. g3 {[%emt 0:06:55]} g6 {[%emt 0:08:54]} 27. Ra3 {[%emt 0:08:42]} h5 {[%emt 0:00:57]} 28. Rba1 {[%emt 0:04:47][%cal Ra3a4]} Rca7 {[%emt 0:00:56]} 29. Qf1 {[%emt 0:01:33]} Rb8 {[%emt 0:07:52]} 30. Qd1 {[%emt 0:02:10][%cal Ra3a4]} Rba8 {[%emt 0:00:48]} 31. Qf1 {[%emt 0:03:31]} Rb8 {[%emt 0:00:32]} 32. Qd1 {[%emt 0:02:59][%cal Ra3a4]} Rba8 {[%emt 0:16:19]} 33. Qf1 {[%emt 0:09:25]} b5 (33... Rb8 $11) 34. Qe1 {[%emt 0:00:30]} ({White must play} 34. Nc5 $16 Bxc5 35. Bxb5 (35. dxc5 Rb8 $14) 35... Bxb4 36. Bxd7 Bxa3 37. Rxa3 Rxd7 38. Qb5) 34... Nc6 ({Black should play} 34... Nc8 $11) 35. Nc5 $14 {[%emt 0:00:30]} Qe7 $2 {Weighted Error Value: White=0.13 (very precise) /Black=0.16 (very precise)} (35... Bxc5 $11 36. dxc5 Ne5) 1/2-1/2

[Event "1st Uppsala Festival 2022"]
[Site "Uppsala"]
[Date "2022.08.09"]
[Round "3.5"]
[White "Lindberg, Bengt"]
[Black "Sriram, Jha"]
[Result "0-1"]
[ECO "C76"]
[WhiteElo "2370"]
[BlackElo "2361"]
[Annotator "TA"]
[PlyCount "86"]
[EventDate "2022.08.09"]
[EventType "tourn"]
[EventCountry "SWE"]
[SourceTitle "playchess.com"]
[Source "ChessBase"]
[SourceQuality "1"]
[TimeControl "5400+30"]

{[%evp 11,86,32,34,31,43,39,38,20,49,31,39,39,44,35,42,42,37,1,28,-120,-115,-152,-141,-235,-239,-247,-232,-299,-261,-243,-262,-272,-241,-245,-247,-256,-243,-275,-291,-400,-397,-347,-323,-450,-199,-239,-226,-283,-164,-216,-167,-200,-188,-189,-197,-188,-170,-188,-175,-545,-525,-951,-937,-922,-908,-926,-914,-1221,-1005,-29986,-29987,-29987,-29988,-29996,-29997,-29998,-29999]} 1. e4 {[%emt 0:00:03]} e5 {[%emt 0:00:12]} 2. Nf3 {[%emt 0:00:07]} Nc6 {[%emt 0:00:03]} 3. Bb5 {[%emt 0:00:07]} g6 {[%emt 0:00:54]} 4. c3 {[%emt 0:00:11]} a6 {[%emt 0:00:03]} 5. Ba4 {[%emt 0:00:07]} d6 {[%emt 0:00:14]} 6. d4 {[%emt 0:02:21]} Bd7 {[%emt 0:00:06]} 7. Bg5 {[%emt 0:01:37] C76: Ruy Lopez: Deferred Steinitz: 5 c3 Bd7 6 d4 g6.} f6 {[%emt 0:00:08]} 8. Be3 {[%emt 0:00:11]} Bg7 $1 {[%emt 0:00:30][%mdl 4] is currently scoring better than 8...Nh6.} 9. c4 {[%emt 0:07:55] White is slightly better.} Nh6 {[%emt 0:07:18]} 10. d5 {[%emt 0:07:51]} Ne7 {[%emt 0:00:28]} 11. Nc3 {[%emt 0:00:35] Against b5} O-O {[%emt 0:00:37]} 12. h3 {[%emt 0:02:57]} Nf7 {[%emt 0:02:26]} 13. Bxd7 {[%emt 0:08:43]} Qxd7 {[%emt 1:24:01] [#]} 14. g4 $146 {[%emt 0:00:09]} ({Predecessor:} 14. Qa4 Qd8 15. c5 f5 16. cxd6 cxd6 17. Qb4 b5 18. a4 a5 19. Qxb5 Rb8 20. Qe2 fxe4 {0-1 (91) Kosteniuk,A (2474)-Harshavardhan,G (2397) Chess.com INT 2021}) 14... f5 {[%emt 0:00:00]} 15. g5 {[%emt 0:04:09]} (15. gxf5 $11 {keeps the balance.} gxf5 16. Qd3) 15... b5 $17 {[%emt 0:00:00] White is now going downhill.} 16. h4 {[%emt 0:11:05]} bxc4 {[%emt 0:00:00]} 17. Qe2 {[%emt 0:05:32]} (17. Qc2 $17 {was worth a try.}) 17... c6 $19 {[%emt 0:00:00]} 18. Qxc4 {[%emt 0:03:07]} Rfc8 {[%emt 0:00:00] White must now prevent ...cxd5.} 19. Qd3 {[%emt 0:09:47]} cxd5 {[%emt 0:00:00]} 20. Nxd5 {[%emt 0:00:23]} Nxd5 {[%emt 0:00:00]} 21. Qxd5 {[%emt 0:00:22]} Rab8 {[%emt 0:00:00]} 22. exf5 {[%emt 0:07:21]} Qxf5 {[%emt 0:00:00] Threatens to win with ...Rb5.} 23. Nd2 {[%emt 0:04:36]} Rxb2 {[%emt 0:00:00]} 24. h5 {[%emt 0:00:37]} Rb5 {[%emt 0:00:00]} ({Wrong is} 24... Qg4 $2 25. hxg6 hxg6 26. Kf1 $19) 25. Qg2 {[%emt 0:00:07]} e4 {[%emt 0:00:00]} 26. Rd1 {[%emt 0:00:09]} Nxg5 {[%emt 0:00:00]} 27. hxg6 {[%emt 0:01:07]} Qxg6 {[%emt 0:00:00]} (27... Nf3+ $142 28. Kf1 (28. Nxf3 $2 exf3 29. gxh7+ Kh8 $19) 28... hxg6) 28. Rg1 {[%emt 0:02:59][%cal Re3g5]} h6 {[%emt 0:00:00][%cal Bh7h6,Bh6h5][%mdl 32] And now ...Rf5 would win.} 29. Qg4 {[%emt 0:06:05]} Rc7 {[%emt 0:00:00]} (29... Rf5 $142 {...d5 is the strong threat.} 30. Rg2 d5) 30. Kf1 {[%emt 0:00:23]} (30. Rg3 $142) 30... Re5 {[%emt 0:00:00]} 31. Rg3 {[%emt 0:03:32]} Qf7 {[%emt 0:00:00]} 32. Nb3 {[%emt 0:01:26] [#]} Nf3 $1 {[%emt 0:00:00] Strongly threatening ...Nh2+.} 33. Kg2 {[%emt 0:01:26] Against Nh2} h5 {[%emt 0:00:00]} 34. Qh3 {[%emt 0:00:06]} Qf6 {[%emt 0:05:04]} 35. Nd4 $2 {[%emt 0:01:48] [#]} (35. Nd2 {is more resistant.}) 35... Rd5 $1 {[%emt 0:00:31][%cal Rf3d4]} 36. Nxf3 {[%emt 0:01:20]} exf3+ {[%emt 0:01:15]} ({And not} 36... Rxd1 37. Ng5 Re7 38. Qxh5 $11) 37. Rxf3 {[%emt 0:00:15]} Qg6+ {[%emt 0:00:01]} 38. Rg3 {[%emt 0:02:15]} Qe4+ {[%emt 0:00:02]} 39. f3 {[%emt 0:00:39]} Rc2+ {[%emt 0:01:46]} 40. Bf2 {[%emt 0:02:30]} Rxf2+ $1 {[%emt 0:00:16] Black mates.} 41. Kxf2 {[%emt 0:00:02]} Qc2+ {[%emt 0:00:11]} 42. Ke3 {[%emt 0:00:14]} Re5+ {[%emt 0:00:11]} 43. Kf4 {[%emt 0:00:36]} Qc4+ {[%emt 0:00:10] Weighted Error Value: White=0.74/Black=0.24 (precise)} 0-1